Workbook

Sheet Sheet1
A1: Time Stamp | B1: T1 | C1: T2 | D1: Pr | E1: Date
A2: 2011.12.14.00.00.26 | B2: 294.8 | C2: 294.5 | D2: 0.39 | E2: =VALUE(MID(A2,6,2)&"/"&MID(A2,9,2)&"/"&LEFT(A2,4)&" "&MID(A2,12,2)&":"&MID(A2,15,2)&":"&RIGHT(A2,2)) -> 2011-12-14T00:00:26 | G2: 2011-12-14 | H2: =AVERAGE(B2:B101) -> 294.691 | I2: =AVERAGE(C2:C101) -> 294.5373737
A3: 2011.12.14.00.01.02 | B3: 294.8 | C3: 294.5 | D3: 0.39 | E3: =VALUE(MID(A3,6,2)&"/"&MID(A3,9,2)&"/"&LEFT(A3,4)&" "&MID(A3,12,2)&":"&MID(A3,15,2)&":"&RIGHT(A3,2)) -> 2011-12-14T00:01:02 | G3: 2011-12-14T01:00:00 | H3: =AVERAGE(B102:B201) -> 294.6363636 | I3: =AVERAGE(C102:C201) -> 294.4979798
A4: 2011.12.14.00.01.38 | B4: 294.7 | C4: 294.5 | D4: 0.39 | E4: 2011-12-14T00:01:38 | G4: 2011-12-14T02:00:00 | H4: =AVERAGE(B202:B301) -> 294.607 | I4: =AVERAGE(C202:C301) -> 294.475
A5: 2011.12.14.00.02.14 | B5: 294.8 | C5: 294.6 | D5: 0.39 | E5: 2011-12-14T00:02:14 | G5: 2011-12-14T03:00:00 | H5: =AVERAGE(B302:B401) -> 294.5686869 | I5: =AVERAGE(C302:C401) -> 294.411
A6: 2011.12.14.00.02.50 | B6: 294.7 | C6: 294.5 | D6: 0.39 | E6: 2011-12-14T00:02:50 | G6: 2011-12-14T04:00:00 | H6: =AVERAGE(B402:B501) -> 294.538 | I6: =AVERAGE(C402:C501) -> 294.3777778
A7: 2011.12.14.00.03.26 | B7: 294.8 | C7: 294.6 | D7: 0.39 | E7: 2011-12-14T00:03:26 | G7: 2011-12-14T05:00:00 | H7: =AVERAGE(B502:B600) -> 294.5212121 | I7: =AVERAGE(C502:C600) -> 294.3606061
A8: 2011.12.14.00.04.02 | B8: 294.7 | C8: 294.6 | D8: 0.39 | E8: 2011-12-14T00:04:02 | G8: 2011-12-14T06:00:00 | H8: =AVERAGE(B601:B700) -> 294.5 | I8: =AVERAGE(C601:C700) -> 294.316
A9: 2011.12.14.00.04.38 | B9: 294.8 | C9: 294.6 | D9: 0.4 | E9: 2011-12-14T00:04:38 | G9: 2011-12-14T07:00:00 | H9: =AVERAGE(B701:B800) -> 294.46 | I9: =AVERAGE(C701:C800) -> 294.269
A10: 2011.12.14.00.05.14 | B10: 294.7 | C10: 294.5 | D10: 0.39 | E10: 2011-12-14T00:05:14 | G10: 2011-12-14T08:00:00 | H10: =AVERAGE(B801:B900) -> 294.358 | I10: =AVERAGE(C801:C900) -> 294.177
A11: 2011.12.14.00.05.50 | B11: 294.7 | C11: 294.6 | D11: 0.4 | E11: 2011-12-14T00:05:50 | G11: 2011-12-14T09:00:00 | H11: =AVERAGE(B901:B1000) -> 294.442 | I11: =AVERAGE(C901:C1000) -> 294.277
A12: 2011.12.14.00.06.26 | B12: 294.7 | C12: 294.6 | D12: 0.39 | E12: 2011-12-14T00:06:26 | G12: 2011-12-14T10:00:00 | H12: =AVERAGE(B1001:B1100) -> 294.514 | I12: =AVERAGE(C1001:C1100) -> 294.362
A13: 2011.12.14.00.07.02 | B13: 294.7 | C13: 294.6 | D13: 0.4 | E13: 2011-12-14T00:07:02 | G13: 2011-12-14T11:00:00 | H13: =AVERAGE(B1101:B1200) -> 294.5141414 | I13: =AVERAGE(C1101:C1200) -> 294.344
A14: 2011.12.14.00.07.38 | B14: 294.8 | C14: 294.5 | D14: 0.4 | E14: 2011-12-14T00:07:38 | G14: 2011-12-14T12:00:00 | H14: =AVERAGE(B1201:B1300) -> 294.544898 | I14: =AVERAGE(C1201:C1300) -> 294.421
A15: 2011.12.14.00.08.14 | B15: 294.7 | C15: 294.6 | D15: 0.4 | E15: 2011-12-14T00:08:14 | G15: 2011-12-14T13:00:00 | H15: =AVERAGE(B1301:B1400) -> 294.611 | I15: =AVERAGE(C1301:C1400) -> 294.4838384
A16: 2011.12.14.00.08.50 | B16: 294.7 | C16: 294.5 | D16: 0.39 | E16: 2011-12-14T00:08:50 | G16: 2011-12-14T14:00:00 | H16: =AVERAGE(B1401:B1500) -> 294.616 | I16: =AVERAGE(C1401:C1500) -> 294.493
A17: 2011.12.14.00.09.26 | B17: 294.7 | C17: 294.6 | D17: 0.4 | E17: 2011-12-14T00:09:26 | G17: 2011-12-14T15:00:00 | H17: =AVERAGE(B1501:B1600) -> 294.691 | I17: =AVERAGE(C1501:C1600) -> 294.568
A18: 2011.12.14.00.10.02 | B18: 294.8 | C18: 294.5 | D18: 0.39 | E18: 2011-12-14T00:10:02 | G18: 2011-12-14T16:00:00 | H18: =AVERAGE(B1601:B1700) -> 294.758 | I18: =AVERAGE(C1601:C1700) -> 294.6030303
A19: 2011.12.14.00.10.38 | B19: 294.6 | C19: 294.5 | D19: 0.39 | E19: 2011-12-14T00:10:38 | G19: 2011-12-14T17:00:00 | H19: =AVERAGE(B1701:B1800) -> 294.723 | I19: =AVERAGE(C1701:C1800) -> 294.58
A20: 2011.12.14.00.11.14 | B20: 294.7 | C20: 294.6 | D20: 0.4 | E20: 2011-12-14T00:11:14 | G20: 2011-12-14T18:00:00 | H20: =AVERAGE(B1801:B1900) -> 294.7090909 | I20: =AVERAGE(C1801:C1900) -> 294.5727273
A21: 2011.12.14.00.11.50 | B21: 294.7 | C21: 294.4 | D21: 0.4 | E21: 2011-12-14T00:11:50 | G21: 2011-12-14T19:00:00 | H21: =AVERAGE(B1901:B2000) -> 294.6858586 | I21: =AVERAGE(C1901:C2000) -> 294.5353535
A22: 2011.12.14.00.12.26 | B22: 294.7 | C22: 294.6 | D22: 0.4 | E22: 2011-12-14T00:12:26 | G22: 2011-12-14T20:00:00 | H22: =AVERAGE(B2001:B2100) -> 294.674 | I22: =AVERAGE(C2001:C2100) -> 294.526
A23: 2011.12.14.00.13.02 | B23: 294.7 | C23: 294.6 | D23: 0.39 | E23: 2011-12-14T00:13:02 | G23: 2011-12-14T21:00:00 | H23: =AVERAGE(B2101:B2200) -> 294.631 | I23: =AVERAGE(C2101:C2200) -> 294.491
A24: 2011.12.14.00.13.38 | B24: 294.7 | C24: 294.6 | D24: 0.4 | E24: 2011-12-14T00:13:38 | G24: 2011-12-14T22:00:00 | H24: =AVERAGE(B2201:B2300) -> 294.57 | I24: =AVERAGE(C2201:C2300) -> 294.4265306
A25: 2011.12.14.00.14.14 | B25: 294.7 | C25: 294.5 | D25: 0.39 | E25: 2011-12-14T00:14:14 | G25: 2011-12-14T23:00:00 | H25: =AVERAGE(B2300:B2400) -> 294.5366337 | I25: =AVERAGE(C2300:C2400) -> 294.3782178
A26: 2011.12.14.00.14.50 | B26: 294.7 | C26: 294.5 | D26: 0.4 | E26: 2011-12-14T00:14:50
A27: 2011.12.14.00.15.26 | B27: 294.7 | C27: 294.6 | D27: 0.39 | E27: 2011-12-14T00:15:26
A28: 2011.12.14.00.16.02 | B28: 294.7 | C28: 294.6 | D28: 0.39 | E28: 2011-12-14T00:16:02
A29: 2011.12.14.00.16.38 | B29: 294.8 | C29: 294.5 | D29: 0.4 | E29: 2011-12-14T00:16:38
A30: 2011.12.14.00.17.14 | B30: 294.7 | C30: 294.5 | D30: 0.4 | E30: 2011-12-14T00:17:14
A31: 2011.12.14.00.17.50 | B31: 294.7 | C31: 294.6 | D31: 0.39 | E31: 2011-12-14T00:17:50
A32: 2011.12.14.00.18.26 | B32: 294.7 | C32: 294.5 | D32: 0.39 | E32: 2011-12-14T00:18:26
A33: 2011.12.14.00.19.02 | B33: 294.7 | C33: 294.5 | D33: 0.39 | E33: 2011-12-14T00:19:02
A34: 2011.12.14.00.19.38 | B34: 294.6 | C34: 294.5 | D34: 0.39 | E34: 2011-12-14T00:19:38
A35: 2011.12.14.00.20.14 | B35: 294.7 | C35: 294.6 | D35: 0.4 | E35: 2011-12-14T00:20:14
A36: 2011.12.14.00.20.50 | B36: 294.9 | C36: 294.6 | D36: 0.4 | E36: 2011-12-14T00:20:50
A37: 2011.12.14.00.21.26 | B37: 294.7 | C37: 294.6 | D37: 0.39 | E37: 2011-12-14T00:21:26
A38: 2011.12.14.00.22.02 | B38: 294.7 | C38: 294.5 | D38: 0.39 | E38: 2011-12-14T00:22:02
A39: 2011.12.14.00.22.38 | B39: 294.7 | C39: 294.5 | D39: 0.4 | E39: 2011-12-14T00:22:38
A40: 2011.12.14.00.23.14 | B40: 294.7 | C40: 294.6 | D40: 0.4 | E40: 2011-12-14T00:23:14
A41: 2011.12.14.00.23.50 | B41: 294.7 | C41: 294.6 | D41: 0.4 | E41: 2011-12-14T00:23:50
A42: 2011.12.14.00.24.27 | B42: 294.7 | C42: 294.5 | D42: 0.39 | E42: 2011-12-14T00:24:27
A43: 2011.12.14.00.25.03 | B43: 294.7 | C43: 294.6 | D43: 0.39 | E43: 2011-12-14T00:25:03
A44: 2011.12.14.00.25.39 | B44: 294.6 | C44: 294.6 | D44: 0.4 | E44: 2011-12-14T00:25:39
A45: 2011.12.14.00.26.15 | B45: 294.8 | C45: 294.6 | D45: 0.4 | E45: 2011-12-14T00:26:15
A46: 2011.12.14.00.26.51 | B46: 294.7 | C46: 294.6 | D46: 0.4 | E46: 2011-12-14T00:26:51
A47: 2011.12.14.00.27.27 | B47: 294.8 | C47: 294.6 | D47: 0.39 | E47: 2011-12-14T00:27:27
A48: 2011.12.14.00.28.03 | B48: 294.7 | C48: 294.5 | D48: 0.4 | E48: 2011-12-14T00:28:03
A49: 2011.12.14.00.28.39 | B49: 294.6 | C49: 294.5 | D49: 0.4 | E49: 2011-12-14T00:28:39
A50: 2011.12.14.00.29.15 | B50: 294.6 | C50: 294.5 | D50: 0.4 | E50: 2011-12-14T00:29:15
A51: 2011.12.14.00.29.51 | B51: 294.7 | C51: 294.6 | D51: 0.4 | E51: 2011-12-14T00:29:51
A52: 2011.12.14.00.30.27 | B52: 294.7 | C52: 294.6 | D52: 0.4 | E52: 2011-12-14T00:30:27
A53: 2011.12.14.00.31.03 | B53: 294.7 | C53: 294.6 | D53: 0.4 | E53: 2011-12-14T00:31:03
A54: 2011.12.14.00.31.39 | B54: 294.7 | C54: 294.5 | D54: 0.4 | E54: 2011-12-14T00:31:39
A55: 2011.12.14.00.32.15 | B55: 294.7 | C55: 294.5 | D55: 0.4 | E55: 2011-12-14T00:32:15
A56: 2011.12.14.00.32.51 | B56: 294.7 | C56: 294.6 | D56: 0.39 | E56: 2011-12-14T00:32:51
A57: 2011.12.14.00.33.27 | B57: 294.7 | C57: 294.5 | D57: 0.4 | E57: 2011-12-14T00:33:27
A58: 2011.12.14.00.34.03 | B58: 294.7 | C58: 294.6 | D58: 0.39 | E58: 2011-12-14T00:34:03
A59: 2011.12.14.00.34.39 | B59: 294.7 | C59: 294.5 | D59: 0.4 | E59: 2011-12-14T00:34:39
A60: 2011.12.14.00.35.15 | B60: 294.6 | C60: 294.6 | D60: 0.4 | E60: 2011-12-14T00:35:15
A61: 2011.12.14.00.35.51 | B61: 294.6 | C61: 294.6 | D61: 0.4 | E61: 2011-12-14T00:35:51
A62: 2011.12.14.00.36.27 | B62: 294.8 | C62: 294.5 | D62: 0.4 | E62: 2011-12-14T00:36:27
A63: 2011.12.14.00.37.03 | B63: 294.8 | C63: 294.6 | D63: 0.4 | E63: 2011-12-14T00:37:03
A64: 2011.12.14.00.37.39 | B64: 294.7 | C64: 294.5 | D64: 0.4 | E64: 2011-12-14T00:37:39
A65: 2011.12.14.00.38.15 | B65: 294.6 | C65: 294.6 | D65: 0.4 | E65: 2011-12-14T00:38:15
A66: 2011.12.14.00.38.51 | B66: 294.7 | C66: 294.5 | D66: 0.4 | E66: 2011-12-14T00:38:51
A67: 2011.12.14.00.39.27 | B67: 294.7 | C67: 294.5 | D67: 0.4 | E67: =VALUE(MID(A67,6,2)&"/"&MID(A67,9,2)&"/"&LEFT(A67,4)&" "&MID(A67,12,2)&":"&MID(A67,15,2)&":"&RIGHT(A67,2)) -> 2011-12-14T00:39:27
A68: 2011.12.14.00.40.03 | B68: 294.6 | C68: 294.5 | D68: 0.4 | E68: 2011-12-14T00:40:03
A69: 2011.12.14.00.40.39 | B69: 294.6 | C69: 294.6 | D69: 0.4 | E69: 2011-12-14T00:40:39
A70: 2011.12.14.00.41.15 | B70: 294.6 | C70: 294.5 | D70: 0.4 | E70: 2011-12-14T00:41:15
A71: 2011.12.14.00.41.51 | B71: 294.6 | C71: 294.5 | D71: 0.39 | E71: 2011-12-14T00:41:51
A72: 2011.12.14.00.42.27 | B72: 294.7 | C72: 294.5 | D72: 0.39 | E72: 2011-12-14T00:42:27
A73: 2011.12.14.00.43.03 | B73: 294.8 | C73: 294.5 | D73: 0.4 | E73: 2011-12-14T00:43:03
A74: 2011.12.14.00.43.39 | B74: 294.7 | C74: 294.6 | D74: 0.4 | E74: 2011-12-14T00:43:39
A75: 2011.12.14.00.44.15 | B75: 294.7 | C75: 294.4 | D75: 0.4 | E75: 2011-12-14T00:44:15
A76: 2011.12.14.00.44.51 | B76: 294.6 | C76: 294.5 | D76: 0.39 | E76: 2011-12-14T00:44:51
A77: 2011.12.14.00.45.27 | B77: 294.6 | C77: 294.5 | D77: 0.4 | E77: 2011-12-14T00:45:27
A78: 2011.12.14.00.46.03 | B78: 294.7 | C78: 294.6 | D78: 0.4 | E78: 2011-12-14T00:46:03
A79: 2011.12.14.00.46.39 | B79: 294.6 | C79: 294.5 | D79: 0.4 | E79: 2011-12-14T00:46:39
A80: 2011.12.14.00.47.15 | B80: 294.6 | C80: 294.5 | D80: 0.4 | E80: 2011-12-14T00:47:15
A81: 2011.12.14.00.47.51 | B81: 294.6 | C81: 294.5 | D81: 0.4 | E81: 2011-12-14T00:47:51
A82: 2011.12.14.00.48.27 | B82: 294.7 | C82: 294.5 | D82: 0.4 | E82: 2011-12-14T00:48:27
A83: 2011.12.14.00.49.03 | B83: 294.7 | C83: 294.5 | D83: 0.4 | E83: 2011-12-14T00:49:03
A84: 2011.12.14.00.49.39 | B84: 294.7 | C84: 294.5 | D84: 0.4 | E84: 2011-12-14T00:49:39
A85: 2011.12.14.00.50.15 | B85: 294.7 | C85: 294.5 | D85: 0.4 | E85: 2011-12-14T00:50:15
A86: 2011.12.14.00.50.51 | B86: 294.6 | C86: ----- | D86: 0.4 | E86: 2011-12-14T00:50:51
A87: 2011.12.14.00.51.27 | B87: 294.7 | C87: 294.6 | D87: 0.4 | E87: 2011-12-14T00:51:27
A88: 2011.12.14.00.52.03 | B88: 294.6 | C88: 294.5 | D88: 0.4 | E88: 2011-12-14T00:52:03
A89: 2011.12.14.00.52.39 | B89: 294.6 | C89: 294.5 | D89: 0.39 | E89: 2011-12-14T00:52:39
A90: 2011.12.14.00.53.15 | B90: 294.7 | C90: 294.5 | D90: 0.4 | E90: 2011-12-14T00:53:15
A91: 2011.12.14.00.53.51 | B91: 294.6 | C91: 294.5 | D91: 0.4 | E91: 2011-12-14T00:53:51
A92: 2011.12.14.00.54.27 | B92: 294.6 | C92: 294.5 | D92: 0.4 | E92: 2011-12-14T00:54:27
A93: 2011.12.14.00.55.03 | B93: 294.7 | C93: 294.5 | D93: 0.4 | E93: 2011-12-14T00:55:03
A94: 2011.12.14.00.55.39 | B94: 294.6 | C94: 294.6 | D94: 0.4 | E94: 2011-12-14T00:55:39
A95: 2011.12.14.00.56.15 | B95: 294.7 | C95: 294.4 | D95: 0.4 | E95: 2011-12-14T00:56:15
A96: 2011.12.14.00.56.51 | B96: 294.6 | C96: 294.5 | D96: 0.4 | E96: 2011-12-14T00:56:51
A97: 2011.12.14.00.57.27 | B97: 294.6 | C97: 294.5 | D97: 0.4 | E97: 2011-12-14T00:57:27
A98: 2011.12.14.00.58.03 | B98: 294.6 | C98: 294.5 | D98: 0.4 | E98: 2011-12-14T00:58:03
A99: 2011.12.14.00.58.40 | B99: 294.8 | C99: 294.5 | D99: 0.4 | E99: 2011-12-14T00:58:40
A100: 2011.12.14.00.59.16 | B100: 294.7 | C100: 294.5 | D100: 0.4 | E100: 2011-12-14T00:59:16
A101: 2011.12.14.00.59.52 | B101: 294.8 | C101: 294.5 | D101: 0.4 | E101: 2011-12-14T00:59:52
A102: 2011.12.14.01.00.28 | B102: 294.6 | C102: 294.5 | D102: 0.4 | E102: 2011-12-14T01:00:28
A103: 2011.12.14.01.01.04 | B103: 294.6 | C103: 294.6 | D103: 0.4 | E103: 2011-12-14T01:01:04
A104: 2011.12.14.01.01.40 | B104: 294.7 | C104: 294.6 | D104: 0.4 | E104: 2011-12-14T01:01:40
A105: 2011.12.14.01.02.16 | B105: 294.7 | C105: 294.5 | D105: 0.4 | E105: 2011-12-14T01:02:16
A106: 2011.12.14.01.02.52 | B106: 294.6 | C106: 294.5 | D106: 0.4 | E106: 2011-12-14T01:02:52
A107: 2011.12.14.01.03.28 | B107: 294.7 | C107: 294.5 | D107: 0.4 | E107: 2011-12-14T01:03:28
A108: 2011.12.14.01.04.04 | B108: 294.6 | C108: 294.4 | D108: 0.4 | E108: 2011-12-14T01:04:04
A109: 2011.12.14.01.04.40 | B109: 294.6 | C109: 294.5 | D109: 0.4 | E109: 2011-12-14T01:04:40
A110: 2011.12.14.01.05.16 | B110: 294.6 | C110: 294.5 | D110: 0.4 | E110: 2011-12-14T01:05:16
A111: 2011.12.14.01.05.52 | B111: 294.6 | C111: 294.5 | D111: 0.4 | E111: 2011-12-14T01:05:52
A112: 2011.12.14.01.06.28 | B112: 294.7 | C112: 294.5 | D112: 0.4 | E112: 2011-12-14T01:06:28
A113: 2011.12.14.01.07.04 | B113: 294.6 | C113: 294.6 | D113: 0.4 | E113: 2011-12-14T01:07:04
A114: 2011.12.14.01.07.40 | B114: 294.6 | C114: 294.5 | D114: 0.4 | E114: 2011-12-14T01:07:40
A115: 2011.12.14.01.08.16 | B115: 294.7 | C115: 294.5 | D115: 0.4 | E115: 2011-12-14T01:08:16
A116: 2011.12.14.01.08.52 | B116: 294.6 | C116: 294.6 | D116: 0.4 | E116: 2011-12-14T01:08:52
A117: 2011.12.14.01.09.28 | B117: 294.6 | C117: 294.6 | D117: 0.4 | E117: 2011-12-14T01:09:28
A118: 2011.12.14.01.10.04 | B118: 294.6 | C118: 294.5 | D118: 0.4 | E118: 2011-12-14T01:10:04
A119: 2011.12.14.01.10.40 | B119: 294.6 | C119: 294.4 | D119: 0.4 | E119: 2011-12-14T01:10:40
A120: 2011.12.14.01.11.16 | B120: 294.7 | C120: 294.5 | D120: 0.4 | E120: 2011-12-14T01:11:16
A121: 2011.12.14.01.11.52 | B121: 294.7 | C121: 294.5 | D121: 0.4 | E121: 2011-12-14T01:11:52
A122: 2011.12.14.01.12.28 | B122: 294.6 | C122: 294.5 | D122: 0.4 | E122: 2011-12-14T01:12:28
A123: 2011.12.14.01.13.04 | B123: ----- | C123: 294.5 | D123: 0.4 | E123: 2011-12-14T01:13:04
A124: 2011.12.14.01.13.40 | B124: 294.6 | C124: 294.5 | D124: 0.4 | E124: 2011-12-14T01:13:40
A125: 2011.12.14.01.14.16 | B125: 294.7 | C125: 294.5 | D125: 0.4 | E125: 2011-12-14T01:14:16
A126: 2011.12.14.01.14.52 | B126: 294.7 | C126: 294.6 | D126: 0.4 | E126: 2011-12-14T01:14:52
A127: 2011.12.14.01.15.28 | B127: 294.6 | C127: 294.5 | D127: 0.4 | E127: 2011-12-14T01:15:28
A128: 2011.12.14.01.16.04 | B128: 294.7 | C128: 294.4 | D128: 0.4 | E128: 2011-12-14T01:16:04
A129: 2011.12.14.01.16.40 | B129: 294.6 | C129: 294.5 | D129: 0.4 | E129: 2011-12-14T01:16:40
A130: 2011.12.14.01.17.16 | B130: 294.6 | C130: 294.4 | D130: 0.4 | E130: 2011-12-14T01:17:16
A131: 2011.12.14.01.17.52 | B131: 294.6 | C131: 294.5 | D131: 0.4 | E131: =VALUE(MID(A131,6,2)&"/"&MID(A131,9,2)&"/"&LEFT(A131,4)&" "&MID(A131,12,2)&":"&MID(A131,15,2)&":"&RIGHT(A131,2)) -> 2011-12-14T01:17:52
A132: 2011.12.14.01.18.28 | B132: 294.7 | C132: 294.5 | D132: 0.4 | E132: 2011-12-14T01:18:28
A133: 2011.12.14.01.19.04 | B133: 294.6 | C133: 294.5 | D133: 0.4 | E133: 2011-12-14T01:19:04
A134: 2011.12.14.01.19.40 | B134: 294.7 | C134: 294.5 | D134: 0.4 | E134: 2011-12-14T01:19:40
A135: 2011.12.14.01.20.16 | B135: 294.6 | C135: 294.5 | D135: 0.4 | E135: 2011-12-14T01:20:16
A136: 2011.12.14.01.20.52 | B136: 294.6 | C136: 294.5 | D136: 0.4 | E136: 2011-12-14T01:20:52
A137: 2011.12.14.01.21.28 | B137: 294.6 | C137: 294.5 | D137: 0.4 | E137: 2011-12-14T01:21:28
A138: 2011.12.14.01.22.04 | B138: 294.6 | C138: 294.5 | D138: 0.4 | E138: 2011-12-14T01:22:04
A139: 2011.12.14.01.22.40 | B139: 294.7 | C139: 294.4 | D139: 0.4 | E139: 2011-12-14T01:22:40
A140: 2011.12.14.01.23.16 | B140: 294.6 | C140: 294.5 | D140: 0.4 | E140: 2011-12-14T01:23:16
A141: 2011.12.14.01.23.52 | B141: 294.7 | C141: ----- | D141: 0.4 | E141: 2011-12-14T01:23:52
A142: 2011.12.14.01.24.28 | B142: 294.6 | C142: 294.5 | D142: 0.4 | E142: 2011-12-14T01:24:28
A143: 2011.12.14.01.25.04 | B143: 294.6 | C143: 294.6 | D143: 0.4 | E143: 2011-12-14T01:25:04
A144: 2011.12.14.01.25.40 | B144: 294.7 | C144: 294.5 | D144: 0.4 | E144: 2011-12-14T01:25:40
A145: 2011.12.14.01.26.16 | B145: 294.7 | C145: 294.5 | D145: 0.4 | E145: 2011-12-14T01:26:16
A146: 2011.12.14.01.26.52 | B146: 294.6 | C146: 294.5 | D146: 0.4 | E146: 2011-12-14T01:26:52
A147: 2011.12.14.01.27.28 | B147: 294.6 | C147: 294.5 | D147: 0.4 | E147: 2011-12-14T01:27:28
A148: 2011.12.14.01.28.04 | B148: 294.7 | C148: 294.5 | D148: 0.4 | E148: 2011-12-14T01:28:04
A149: 2011.12.14.01.28.40 | B149: 294.6 | C149: 294.4 | D149: 0.4 | E149: 2011-12-14T01:28:40
A150: 2011.12.14.01.29.16 | B150: 294.8 | C150: 294.5 | D150: 0.4 | E150: 2011-12-14T01:29:16
A151: 2011.12.14.01.29.52 | B151: 294.6 | C151: 294.5 | D151: 0.4 | E151: 2011-12-14T01:29:52
A152: 2011.12.14.01.30.28 | B152: 294.6 | C152: 294.4 | D152: 0.4 | E152: 2011-12-14T01:30:28
A153: 2011.12.14.01.31.04 | B153: 294.6 | C153: 294.5 | D153: 0.4 | E153: 2011-12-14T01:31:04
A154: 2011.12.14.01.31.40 | B154: 294.6 | C154: 294.5 | D154: 0.4 | E154: 2011-12-14T01:31:40
A155: 2011.12.14.01.32.16 | B155: 294.6 | C155: 294.5 | D155: 0.4 | E155: 2011-12-14T01:32:16
A156: 2011.12.14.01.32.53 | B156: 294.6 | C156: 294.5 | D156: 0.4 | E156: 2011-12-14T01:32:53
A157: 2011.12.14.01.33.29 | B157: 294.6 | C157: 294.5 | D157: 0.4 | E157: 2011-12-14T01:33:29
A158: 2011.12.14.01.34.05 | B158: 294.7 | C158: 294.5 | D158: 0.4 | E158: 2011-12-14T01:34:05
A159: 2011.12.14.01.34.41 | B159: 294.6 | C159: 294.5 | D159: 0.4 | E159: 2011-12-14T01:34:41
A160: 2011.12.14.01.35.17 | B160: 294.6 | C160: 294.4 | D160: 0.4 | E160: 2011-12-14T01:35:17
A161: 2011.12.14.01.35.53 | B161: 294.6 | C161: 294.5 | D161: 0.4 | E161: 2011-12-14T01:35:53
A162: 2011.12.14.01.36.29 | B162: 294.6 | C162: 294.5 | D162: 0.4 | E162: 2011-12-14T01:36:29
A163: 2011.12.14.01.37.05 | B163: 294.7 | C163: 294.5 | D163: 0.4 | E163: 2011-12-14T01:37:05
A164: 2011.12.14.01.37.41 | B164: 294.7 | C164: 294.6 | D164: 0.4 | E164: 2011-12-14T01:37:41
A165: 2011.12.14.01.38.17 | B165: 294.7 | C165: 294.4 | D165: 0.4 | E165: 2011-12-14T01:38:17
A166: 2011.12.14.01.38.53 | B166: 294.6 | C166: 294.6 | D166: 0.4 | E166: 2011-12-14T01:38:53
A167: 2011.12.14.01.39.29 | B167: 294.6 | C167: 294.5 | D167: 0.4 | E167: 2011-12-14T01:39:29
A168: 2011.12.14.01.40.05 | B168: 294.6 | C168: 294.5 | D168: 0.4 | E168: 2011-12-14T01:40:05
A169: 2011.12.14.01.40.41 | B169: 294.8 | C169: 294.5 | D169: 0.4 | E169: 2011-12-14T01:40:41
A170: 2011.12.14.01.41.17 | B170: 294.6 | C170: 294.5 | D170: 0.4 | E170: 2011-12-14T01:41:17
A171: 2011.12.14.01.41.53 | B171: 294.6 | C171: 294.5 | D171: 0.41 | E171: 2011-12-14T01:41:53
A172: 2011.12.14.01.42.29 | B172: 294.6 | C172: 294.5 | D172: 0.4 | E172: 2011-12-14T01:42:29
A173: 2011.12.14.01.43.05 | B173: 294.6 | C173: 294.5 | D173: 0.4 | E173: 2011-12-14T01:43:05
A174: 2011.12.14.01.43.41 | B174: 294.8 | C174: 294.5 | D174: 0.4 | E174: 2011-12-14T01:43:41
A175: 2011.12.14.01.44.17 | B175: 294.6 | C175: 294.5 | D175: 0.4 | E175: 2011-12-14T01:44:17
A176: 2011.12.14.01.44.53 | B176: 294.7 | C176: 294.5 | D176: 0.4 | E176: 2011-12-14T01:44:53
A177: 2011.12.14.01.45.29 | B177: 294.7 | C177: 294.5 | D177: 0.4 | E177: 2011-12-14T01:45:29
A178: 2011.12.14.01.46.05 | B178: 294.6 | C178: 294.5 | D178: 0.4 | E178: 2011-12-14T01:46:05
A179: 2011.12.14.01.46.41 | B179: 294.6 | C179: 294.5 | D179: 0.41 | E179: 2011-12-14T01:46:41
A180: 2011.12.14.01.47.17 | B180: 294.6 | C180: 294.5 | D180: 0.4 | E180: 2011-12-14T01:47:17
A181: 2011.12.14.01.47.53 | B181: 294.6 | C181: 294.4 | D181: 0.41 | E181: 2011-12-14T01:47:53
A182: 2011.12.14.01.48.29 | B182: 294.6 | C182: 294.5 | D182: 0.4 | E182: 2011-12-14T01:48:29
A183: 2011.12.14.01.49.05 | B183: 294.6 | C183: 294.5 | D183: 0.4 | E183: 2011-12-14T01:49:05
A184: 2011.12.14.01.49.41 | B184: 294.6 | C184: 294.5 | D184: 0.4 | E184: 2011-12-14T01:49:41
A185: 2011.12.14.01.50.17 | B185: 294.7 | C185: 294.5 | D185: 0.4 | E185: 2011-12-14T01:50:17
A186: 2011.12.14.01.50.53 | B186: 294.6 | C186: 294.5 | D186: 0.41 | E186: 2011-12-14T01:50:53
A187: 2011.12.14.01.51.29 | B187: 294.6 | C187: 294.5 | D187: 0.4 | E187: 2011-12-14T01:51:29
A188: 2011.12.14.01.52.05 | B188: 294.6 | C188: 294.5 | D188: 0.4 | E188: 2011-12-14T01:52:05
A189: 2011.12.14.01.52.41 | B189: 294.6 | C189: 294.5 | D189: 0.4 | E189: 2011-12-14T01:52:41
A190: 2011.12.14.01.53.17 | B190: 294.7 | C190: 294.5 | D190: 0.4 | E190: 2011-12-14T01:53:17
A191: 2011.12.14.01.53.53 | B191: 294.6 | C191: 294.5 | D191: 0.4 | E191: 2011-12-14T01:53:53
A192: 2011.12.14.01.54.29 | B192: 294.7 | C192: 294.4 | D192: 0.4 | E192: 2011-12-14T01:54:29
A193: 2011.12.14.01.55.05 | B193: 294.7 | C193: 294.5 | D193: 0.4 | E193: 2011-12-14T01:55:05
A194: 2011.12.14.01.55.41 | B194: 294.6 | C194: 294.5 | D194: 0.4 | E194: 2011-12-14T01:55:41
A195: 2011.12.14.01.56.17 | B195: 294.6 | C195: 294.5 | D195: 0.41 | E195: =VALUE(MID(A195,6,2)&"/"&MID(A195,9,2)&"/"&LEFT(A195,4)&" "&MID(A195,12,2)&":"&MID(A195,15,2)&":"&RIGHT(A195,2)) -> 2011-12-14T01:56:17
A196: 2011.12.14.01.56.53 | B196: 294.7 | C196: 294.5 | D196: 0.41 | E196: 2011-12-14T01:56:53
A197: 2011.12.14.01.57.29 | B197: 294.7 | C197: 294.5 | D197: 0.4 | E197: 2011-12-14T01:57:29
A198: 2011.12.14.01.58.05 | B198: 294.6 | C198: 294.5 | D198: 0.41 | E198: 2011-12-14T01:58:05
A199: 2011.12.14.01.58.41 | B199: 294.6 | C199: 294.5 | D199: 0.4 | E199: 2011-12-14T01:58:41
A200: 2011.12.14.01.59.17 | B200: 294.6 | C200: 294.5 | D200: 0.4 | E200: 2011-12-14T01:59:17
... 2200 more rows

Sheet Sheet2

Sheet Sheet3
